[Event "Elegant Academy GM Aspirant-II"]
[Site "Dhaka"]
[Date "2024.02.23"]
[Round "4.1"]
[White "Aradhya, Garg"]
[Black "Mayank Chakraborty"]
[Result "1/2-1/2"]
[ECO "D24"]
[WhiteElo "2390"]
[BlackElo "2409"]
[Annotator "TA"]
[PlyCount "98"]
[EventDate "2024.02.21"]
[EventType "tourn"]
[EventCountry "BAN"]
[SourceTitle "playchess.com"]
[Source "ChessBase"]
[SourceQuality "1"]
[TimeControl "5400+30"]

{[%evp 31,98,64,51,68,84,93,86,75,81,38,29,29,32,38,40,39,19,9,7,6,12,11,12,7,14,8,8,14,60,32,33,0,0,0,8,15,14,0,8,0,8,8,14,14,34,10,48,0,0,0,0,0,0,0,0,0,0,0,0,0,0,0,0,0,0,0,0,-29989,29999]} 1. d4 {[%emt 0:00:02]} Nf6 {[%emt 0:00:10]} 2. c4 {[%emt 0:00:04]} e6 {[%emt 0:00:22]} 3. Nf3 {[%emt 0:00:04]} d5 {[%emt 0:00:05]} 4. Nc3 {[%emt 0:00:07]} dxc4 {[%emt 0:00:05]} 5. e4 {[%emt 0:00:04]} b5 {[%emt 0:00:05]} 6. e5 {[%emt 0:00:03] D24: Queen's Gambit Accepted: 3 Nf3 Nf6 4 Nc3.} Nfd7 {[%emt 0:00:09]} 7. Nxb5 {[%emt 0:00:07]} Nb6 {[%emt 0:00:04]} 8. a4 {[%emt 0:00:04]} Qd7 {[%emt 0:00:05]} 9. Bd2 {[%emt 0:02:49]} a6 {[%emt 0:03:40]} 10. Na3 {[%emt 0:01:46]} Bxa3 {[%emt 0:11:44]} 11. Rxa3 {[%emt 0:00:06]} a5 {[%emt 0:00:10]} 12. b3 $146 {[%emt 0:13:10]} ({Predecessor:} 12. h4 Nc6 13. h5 h6 14. Rh4 Bb7 15. Qc1 Nb4 16. Rg4 f5 17. exf6 gxf6 18. Bxc4 Nxc4 19. Qxc4 {1-0 Vachier Lagrave,M (2760)-Nepomniachtchi,I (2792) FTX Crypto Cup Prelim rapid 2021 (11)}) 12... cxb3 {[%emt 0:04:36]} 13. Bb5 {[%emt 0:04:09]} c6 {[%emt 0:02:12]} 14. Bd3 {[%emt 0:00:03]} Ba6 {[%emt 0:06:11]} 15. Qxb3 {[%emt 0:02:35]} Bxd3 {[%emt 0:00:25]} 16. Qxd3 {[%emt 0:04:29]} Qd5 {[%emt 0:07:01]} 17. O-O {[%emt 0:03:25]} N8d7 {[%emt 0:02:15]} 18. Rc1 {[%emt 0:03:18]} h6 {[%emt 0:04:30]} 19. Qc2 {[%emt 0:26:17]} O-O {[%emt 0:00:50]} 20. Qxc6 {[%emt 0:02:54]} Rfc8 {[%emt 0:00:12]} 21. Qxd5 {[%emt 0:00:35]} Rxc1+ {[%emt 0:00:18]} 22. Bxc1 {[%emt 0:00:02]} Nxd5 {[%emt 0:00:17]} 23. Bd2 {[%emt 0:04:37]} N7b6 {[%emt 0:00:09]} 24. h4 {[%emt 0:01:58]} Nc4 {[%emt 0:01:25]} 25. Ra1 {[%emt 0:00:19]} Rb8 {[%emt 0:02:27]} 26. Rc1 {[%emt 0:04:57]} Nxd2 $1 {[%emt 0:01:20]} 27. Nxd2 {[%emt 0:00:02]} Rb4 {[%emt 0:01:33]} 28. Rc4 {[%emt 0:00:46]} Rb2 {[%emt 0:00:53]} 29. Ne4 {[%emt 0:00:38]} Ra2 {[%emt 0:06:49]} (29... Nb6 $11 30. Rc6 Rb1+ 31. Kh2 Rb4) 30. Nd6 {[%emt 0:03:47]} g5 {[%emt 0:04:29]} 31. hxg5 {[%emt 0:01:29]} hxg5 {[%emt 0:00:05]} 32. Ne4 {[%emt 0:01:29]} Nb6 {[%emt 0:07:40]} 33. Rc6 {[%emt 0:00:35]} Nd5 {[%emt 0:00:22]} 34. Rc4 {[%emt 0:01:27]} Nb6 {[%emt 0:00:19]} 35. Rc6 {[%emt 0:00:01]} Nd5 {[%emt 0:00:06]} 36. Nxg5 {[%emt 0:05:43]} Rxa4 {[%emt 0:00:23]} 37. Ra6 {[%emt 0:00:02]} Ra1+ {[%emt 0:09:50]} 38. Kh2 {[%emt 0:00:02]} a4 {[%emt 0:00:05]} 39. Ra7 {[%emt 0:00:57]} (39. Ra8+ $14 Kg7 40. Ra7) 39... a3 $11 {[%emt 0:05:10]} 40. Nxf7 {[%emt 0:00:05]} a2 {[%emt 0:01:23]} 41. Nh6+ {[%emt 0:00:06]} Kf8 {[%emt 0:00:27]} 42. g4 {[%emt 0:02:14]} Nb4 {[%emt 0:02:31]} 43. g5 {[%emt 0:00:06]} Nc6 $1 {[%emt 0:00:53]} 44. Rf7+ {[%emt 0:06:09]} Ke8 {[%emt 0:00:18]} 45. g6 $1 {[%emt 0:00:05]} Rh1+ {[%emt 0:01:11]} (45... Nxd4 $2 46. g7 $18 (46. Ra7 Nf3+ 47. Kg3 Nxe5 $11) (46. Ra7 Nf3+ 47. Kg3 Nxe5 $11)) 46. Kxh1 {[%emt 0:00:06]} a1=Q+ {[%emt 0:00:04]} (46... a1=B 47. g7 Ne7 48. Rxe7+ (48. g8=R+ Nxg8 49. Ra7 Bxd4 $18) 48... Kxe7 49. g8=Q (49. g8=R Bxd4 50. Ng4 Kf7 $18) 49... Kd7 50. Qa8 (50. Qf7+ Kc6 51. Qxe6+ Kb5 52. Qd5+ Kb4 53. e6 Bc3 54. e7 Be1 55. e8=Q Bxf2 56. Qc5+ Kb3 57. Qeb5+ Ka2 58. Qa7#) 50... Bxd4 51. Qb7+ (51. Qa4+ Kc7 52. Qxd4 Kc6 53. Nf7 Kb5 54. Nd6+ Kc6 55. Qc4+ Kb6 56. Qc3 Ka7 57. Qc6 Kb8 58. Qb7#) 51... Ke8 52. Nf7 (52. Qb8+ Kd7 53. Qd6+ Kc8 54. Qxd4 Kb7 55. Nf7 Kc6 56. Nd6 Kd7 57. Qc4 Ke7 58. Qc7+ Kf8 59. Qf7#)) 47. Kg2 {[%emt 0:01:44]} Qb1 {[%emt 0:06:40]} (47... Nxd4 48. g7 Qa8+ 49. Kh2 Nf3+ 50. Kg3 (50. Rxf3 Qxf3 51. g8=Q+ Ke7 $18) 50... Qa3 51. g8=Q+) 48. g7 {[%emt 0:08:53]} Qg6+ {[%emt 0:12:32]} 49. Kh2 $2 {[%emt 0:00:30][%mdl 8192]} (49. Kf1 $11 Qb1+ 50. Ke2 (50. Kg2 Qg6+ 51. Kf1 Qb1+ 52. Kg2 $11) 50... Qe4+ (50... Nxd4+ 51. Kd2 $11) 51. Kf1 Qh1+ (51... Nxd4 52. g8=Q#) 52. Ke2 Qe4+ (52... Qxh6 53. g8=Q+) (52... Nxd4+ 53. Kd3 $11) 53. Kf1 Qb1+ (53... Nxd4 54. g8=Q#) (53... Qh1+ 54. Ke2 $11) 54. Ke2 (54. Kg2 Qg6+ 55. Kf1 Qxf7 $17) 54... Qe4+ (54... Nxd4+ 55. Ke3 $11)) 49... Qb1 $4 {[%mdl 8192]} (49... Qxh6+ {and all is fine.} 50. Kg2 Qg6+ (50... Kxf7 {leads to mate.} 51. d5 Qg6+ 52. Kf1 Qd3+ 53. Kg2 Nxe5 54. dxe6+ Kxg7 55. e7 Qf3+ 56. Kf1 Nd3 57. Kg1 Nf4 58. e8=N+ Kh8 59. Kh2 Qg2#) 51. Kf3 Qd3+ (51... Kxf7 52. Ke3 Kxg7 53. d5 exd5 54. f4 Qe4+ 55. Kd2 d4 56. f5 Nxe5 57. Kc1 Nc4 58. f6+ Kxf6 59. Kd1 d3 60. Kc1 Qh1#) 52. Kf4 Qxd4+ (52... Kxf7 53. g8=B+ Kxg8 54. d5 Nd4 55. dxe6 Qf3+ 56. Kg5 Nxe6+ 57. Kh4 Qf4+ 58. Kh3 Qg5 59. Kh2 Nf4 60. Kh1 Qg2#) 53. Kf3 Kxf7 54. Kg2 Qg4+ (54... Nxe5 {is a self mate.} 55. Kg1 Qg4+ 56. Kf1 Nd3 57. g8=Q+ Kxg8 58. f3 Qxf3+ 59. Kg1 Qg3+ 60. Kh1 Nf2#) (54... Kxg7 55. f4 Qxf4 56. Kh1 Qf3+ 57. Kh2 Nxe5 58. Kg1 Ng6 59. Kh2 Nh4 60. Kg1 Qg2#) 55. Kf1 Nd4 (55... Nxe5 {gets mated.} 56. Ke1 Qf3 57. g8=R Kxg8 58. Kd2 Nc4+ 59. Ke1 Kh7 60. Kf1 Ne3+ 61. Kg1 Qg2#) 56. g8=R Kxg8 (56... Qd1+ 57. Kg2 Qf3+ 58. Kf1 Kxg8 59. Kg1 Ne2+ 60. Kf1 Ng3+ 61. Kg1 Qh1#) 57. f3 Qxf3+ (57... Nxf3 58. Ke2 Qe4+ 59. Kf2 Nxe5 60. Kg1 Qf3 61. Kh2 Ng4+ 62. Kg1 Qg3+ 63. Kh1 Qh2#) 58. Kg1 Ne2+ 59. Kh2 Qg3+ 60. Kh1 Qh3#) 1/2-1/2

[Event "Elegant Academy GM Aspirant-II"]
[Site "Dhaka"]
[Date "2024.02.23"]
[Round "4.2"]
[White "Mohammad Fahad, Rahman"]
[Black "Setyaki, Azarya Jodi"]
[Result "1-0"]
[ECO "C79"]
[WhiteElo "2418"]
[BlackElo "2400"]
[Annotator "TA"]
[PlyCount "75"]
[EventDate "2024.02.21"]
[EventType "tourn"]
[EventCountry "BAN"]
[SourceTitle "playchess.com"]
[Source "ChessBase"]
[SourceQuality "1"]
[TimeControl "5400+30"]

{[%evp 15,75,27,31,32,31,35,47,34,21,17,13,26,18,11,18,20,20,12,12,8,17,-6,0,0,0,0,0,0,39,0,0,14,105,94,172,174,188,174,197,197,230,241,251,188,194,202,288,280,337,329,313,321,505,511,515,515,567,581,554,465,460,393]} 1. e4 {[%emt 0:03:45]} e5 {[%emt 0:00:07]} 2. Nf3 {[%emt 0:00:07]} Nc6 {[%emt 0:00:06]} 3. Bb5 {[%emt 0:00:05]} a6 {[%emt 0:00:17]} 4. Ba4 {[%emt 0:00:02]} Nf6 {[%emt 0:00:04]} 5. O-O {[%emt 0:00:11]} d6 {[%emt 0:00:11]} 6. Bxc6+ {[%emt 0:00:12]} bxc6 {[%emt 0:00:06]} 7. d4 {[%emt 0:00:05]} exd4 {[%emt 0:00:06]} 8. Nxd4 {[%emt 0:00:01]} c5 {[%emt 0:00:08]} 9. Nc6 {[%emt 0:00:04]} Qd7 {[%emt 0:00:05]} 10. Na5 {[%emt 0:00:04]} Qa4 {[%emt 0:00:07]} 11. Bd2 {[%emt 0:00:50] White is slightly better.} Be7 {[%emt 0:00:10]} 12. Re1 {[%emt 0:00:42]} Bg4 {[%emt 0:00:08]} 13. f3 {[%emt 0:00:06]} Be6 {[%emt 0:00:04]} 14. Kh1 {[%emt 0:11:09]} O-O {[%emt 0:05:14]} 15. b3 {[%emt 1:20:37]} Qd7 {[%emt 0:00:26]} 16. Nc3 {[%emt 0:00:00]} c6 {[%emt 0:02:41]} 17. Na4 {[%emt 0:00:00]} Qc7 {[%emt 0:02:56] Prevents Nb6} 18. Qe2 {[%emt 0:00:00]} d5 {[%emt 0:02:32]} 19. e5 {[%emt 0:00:00]} Nd7 {[%emt 0:01:14]} 20. f4 {[%emt 0:00:00][%cal Bf3f4,Bf4f5][%mdl 32]} Bf5 {[%emt 0:02:10][%cal Od7b6]} 21. c4 {[%emt 0:00:00]} f6 {[%emt 0:09:33] Threatens to win with ...fxe5.} 22. e6 {[%emt 0:00:00]} (22. cxd5 $5 cxd5 23. Qf3 $11 (23. e6 Nb6 $17)) 22... Nb6 {[%emt 0:03:44]} 23. Nc3 {[%emt 0:00:00] next g4 is good for White.} Bg6 {[%emt 0:01:21] [#]} (23... dxc4 $1 $11 24. Ne4 Rad8 (24... Bxe6 $2 {too greedy.} 25. Nc3 $18)) 24. Qf3 $1 $36 {[%emt 0:00:00][%mdl 2048] Strongly threatening f5. White has strong initiative. White is more active.} Nc8 {[%emt 0:15:24]} (24... f5 $16) 25. f5 $1 $18 {[%emt 0:00:00]} Be8 {[%emt 0:01:08] [#]} 26. Ne2 $1 {[%emt 0:00:00]} Bd6 {[%emt 0:02:03]} 27. cxd5 {[%emt 0:00:00]} cxd5 {[%emt 0:03:00]} 28. Qxd5 {[%emt 0:00:00]} Rb8 {[%emt 0:00:12]} 29. h3 {[%emt 0:00:00]} Ne7 {[%emt 0:01:39]} 30. Qf3 {[%emt 0:00:00]} Rb5 {[%emt 0:00:13]} (30... g6 {might work better.} 31. Nc4 Bc6) 31. Nc4 {[%emt 0:00:00]} Bc6 {[%emt 0:00:34]} 32. Qg4 {[%emt 0:00:00]} Be5 {[%emt 0:03:04]} 33. Rad1 {[%emt 0:00:00]} Qb7 {[%emt 0:00:07]} (33... Be8 {was called for.} 34. Nxe5 h5) 34. Nf4 {[%emt 0:00:00] White is clearly winning.} Bxf4 {[%emt 0:00:21]} 35. Bxf4 {[%emt 0:00:00] Bh6 is the strong threat.} h5 {[%emt 0:00:07]} 36. Qe2 {[%emt 0:00:00]} Nxf5 {[%emt 0:00:11]} 37. e7 {[%emt 0:00:00]} Nxe7 {[%emt 0:01:46]} 38. Nd6 {[%emt 0:00:00] Against Nc8.   Weighted Error Value: White=0.09 (flawless) /Black=0.28 (precise) .  Mistake:       	---       	Black=4      Inaccurate:     	---       	Black=1      OK:         	White=15    	Black=15     Best:        	White=1     	---        Strong:       	White=2     	---} 1-0

[Event "Elegant Academy GM Aspirant-II"]
[Site "Dhaka"]
[Date "2024.02.23"]
[Round "4.3"]
[White "Rahman, Ziaur"]
[Black "Panesar Vedant"]
[Result "1/2-1/2"]
[ECO "D02"]
[WhiteElo "2428"]
[BlackElo "2452"]
[Annotator "RC"]
[PlyCount "119"]
[EventDate "2024.02.21"]
[EventType "tourn"]
[EventCountry "BAN"]
[SourceTitle "playchess.com"]
[Source "ChessBase"]
[SourceQuality "1"]
[TimeControl "5400+30"]

1. Nf3 {[%emt 0:00:07]} d5 {[%emt 0:01:54]} 2. g3 {[%emt 0:00:35]} Nd7 {[%emt 0:01:56]} 3. d4 {[%emt 0:02:45]} Nb6 {[%emt 0:00:12]} 4. Nc3 {[%emt 0:01:04]} Bf5 {[%emt 0:00:22]} 5. Nh4 {[%emt 0:03:39]} Bg4 {[%emt 0:00:09]} 6. h3 {[%emt 0:06:55]} Bh5 {[%emt 0:00:21]} 7. Ng2 {[%emt 0:02:58]} e6 {[%emt 0:01:05]} 8. Nf4 {[%emt 0:00:44]} Bg6 {[%emt 0:00:02]} 9. Bg2 {[%emt 0:02:31]} c6 {[%emt 0:00:08]} 10. Nxg6 {[%emt 0:01:01]} hxg6 {[%emt 0:00:03]} 11. Qd3 {[%emt 0:01:09]} Nf6 {[%emt 0:00:07]} 12. a4 {[%emt 0:05:27]} Bb4 {[%emt 0:00:42]} 13. O-O {[%emt 0:02:13]} O-O {[%emt 0:03:44]} 14. a5 {[%emt 0:03:56]} Nbd7 {[%emt 0:01:03]} 15. a6 {[%emt 0:05:03]} b5 {[%emt 0:00:27]} 16. e4 {[%emt 0:01:22]} Rc8 {[%emt 0:06:08]} 17. e5 {[%emt 0:04:45]} Ne8 {[%emt 0:00:13]} 18. h4 {[%emt 0:06:44]} Be7 {[%emt 0:01:11]} 19. Ne2 {[%emt 0:02:19]} c5 {[%emt 0:05:01]} 20. c3 {[%emt 0:00:46]} Nc7 {[%emt 0:04:54]} 21. Nf4 {[%emt 0:04:30]} b4 {[%emt 0:03:25]} 22. Bh3 {[%emt 0:02:07]} Qe8 {[%emt 0:02:34]} 23. Kg2 {[%emt 0:00:56]} bxc3 {[%emt 0:01:10]} 24. bxc3 {[%emt 0:00:06]} Nb6 {[%emt 0:00:20]} 25. Rh1 {[%emt 0:03:12]} cxd4 {[%emt 0:06:59]} 26. cxd4 {[%emt 0:00:31]} Nc4 {[%emt 0:18:42]} 27. Bg4 {[%emt 0:02:17]} f5 {[%emt 0:02:52]} 28. Bf3 {[%emt 0:05:38]} Qf7 {[%emt 0:01:12]} 29. Nh3 {[%emt 0:01:11]} Qe8 {[%emt 0:09:28]} 30. Ng5 {[%emt 0:01:45]} Bxg5 {[%emt 0:03:53]} 31. Bxg5 {[%emt 0:00:21]} Kf7 {[%emt 0:00:05]} 32. h5 {[%emt 0:02:44]} Rh8 {[%emt 0:00:11]} 33. g4 {[%emt 0:01:04]} Kg8 {[%emt 0:02:30]} 34. Be2 {[%emt 0:03:15]} Rb8 {[%emt 0:04:14]} 35. Rhb1 {[%emt 0:02:27]} Nb6 {[%emt 0:03:52]} 36. Bd2 {[%emt 0:03:47]} Qf7 {[%emt 0:01:08]} 37. Ba5 {[%emt 0:01:55]} Nca8 {[%emt 0:00:11]} 38. Bb4 {[%emt 0:01:19]} gxh5 {[%emt 0:00:22]} 39. gxh5 {[%emt 0:00:50]} Kh7 {[%emt 0:00:15]} 40. Bd6 {[%emt 0:01:15]} Rbc8 {[%emt 0:00:12]} 41. Rh1 {[%emt 0:01:25]} Nc4 {[%emt 0:00:41]} 42. Bb4 {[%emt 0:00:51]} Rb8 {[%emt 0:00:44]} 43. Bc5 {[%emt 0:00:42]} Rhc8 {[%emt 0:00:16]} 44. Qg3 {[%emt 0:00:20]} Nab6 {[%emt 0:03:27]} 45. Rh3 {[%emt 0:00:58]} Nd2 {[%emt 0:02:05]} 46. Qg6+ {[%emt 0:01:54]} Kg8 {[%emt 0:00:03]} 47. Bd6 {[%emt 0:00:44]} Ra8 {[%emt 0:00:22]} 48. Rg1 {[%emt 0:00:45]} Ne4 {[%emt 0:01:46]} 49. f3 {[%emt 0:01:52]} Rc2 {[%emt 0:04:35]} 50. fxe4 {[%emt 0:00:41]} Rxe2+ {[%emt 0:00:04]} 51. Kf3 {[%emt 0:01:53]} Rxe4 {[%emt 0:00:15]} 52. h6 {[%emt 0:00:17]} Qxg6 {[%emt 0:02:38]} 53. Rxg6 {[%emt 0:00:03]} Rc8 {[%emt 0:00:11]} 54. Rxg7+ {[%emt 0:01:12]} Kh8 {[%emt 0:00:02]} 55. Bc5 {[%emt 0:01:07]} Na4 {[%emt 0:01:06]} 56. Rxa7 {[%emt 0:01:14]} Nxc5 {[%emt 0:00:06]} 57. dxc5 {[%emt 0:00:05]} Rxc5 {[%emt 0:00:38]} 58. Ra8+ {[%emt 0:01:41]} Kh7 {[%emt 0:00:03]} 59. Ra7+ {[%emt 0:00:39]} Kh8 {[%emt 0:00:01]} 60. Ra8+ {[%emt 0:00:24]} 1/2-1/2

[Event "Elegant Academy GM Aspirant-II"]
[Site "Dhaka"]
[Date "2024.02.23"]
[Round "4.4"]
[White "Liyanage, Ranindu Dilshan"]
[Black "Sriram, Jha"]
[Result "1-0"]
[ECO "C60"]
[WhiteElo "2366"]
[BlackElo "2317"]
[Annotator "TA"]
[PlyCount "47"]
[EventDate "2024.02.21"]
[EventType "tourn"]
[EventCountry "BAN"]
[SourceTitle "playchess.com"]
[Source "ChessBase"]
[SourceQuality "1"]
[TimeControl "5400+30"]

{[%evp 9,47,17,23,35,27,28,26,17,28,23,27,20,24,25,43,35,40,37,27,15,46,62,53,12,50,60,70,52,92,94,491,493,662,657,632,650,775,766,758,749]} 1. e4 {[%emt 0:04:08]} e5 {[%emt 0:00:23]} 2. Nf3 {[%emt 0:00:06]} Nc6 {[%emt 0:00:06]} 3. Bb5 {[%emt 0:00:18]} Nge7 {[%emt 0:01:00]} 4. Nc3 {[%emt 0:01:29]} Ng6 {[%emt 0:01:07]} 5. d4 {[%emt 0:03:01]} Nxd4 {[%emt 0:00:42]} 6. Nxd4 {[%emt 0:00:07]} exd4 {[%emt 0:00:02]} 7. Qxd4 {[%emt 0:00:11]} c6 {[%emt 0:00:04]} 8. Be2 {[%emt 0:00:08] White has an edge.} Qb6 {[%emt 0:00:22]} 9. Qd3 {[%emt 0:00:06]} Be7 {[%emt 0:02:22]} 10. O-O {[%emt 0:01:46]} O-O {[%emt 0:00:24]} 11. a4 {[%emt 0:08:59]} a5 {[%emt 0:22:59]} 12. Be3 {[%emt 0:03:31]} Bc5 {[%emt 0:01:23]} 13. Bxc5 {[%emt 0:01:52]} Qxc5 {[%emt 0:00:01]} 14. Rad1 {[%emt 0:08:24]} Qb4 {[%emt 0:06:25]} 15. b3 {[%emt 0:07:58]} Nf4 {[%emt 0:00:48]} 16. Qf3 {[%emt 0:02:08]} (16. Qe3 $5) 16... Qxc3 {[%emt 0:02:14]} 17. Qxf4 {[%emt 0:00:05]} Qxc2 {[%emt 0:00:02]} 18. Bc4 {[%emt 0:00:08]} b5 {[%emt 0:00:09]} 19. axb5 {[%emt 0:00:18] White is more active.} cxb5 {[%emt 0:00:01][%mdl 8192] [#] Loses the game.} (19... a4 $16) 20. Bd5 $18 {[%emt 0:00:09] White is clearly winning.} ({Worse is} 20. Bxb5 Qxb3 21. Bxd7 Bxd7 22. Rxd7 a4 $17) 20... Ba6 {[%emt 0:07:48][%cal Ob5b4]} 21. Bxa8 {[%emt 0:03:50]} Rxa8 {[%emt 0:00:02]} 22. Rxd7 {[%emt 0:00:26]} Rf8 {[%emt 0:01:00]} 23. Qd6 {[%emt 0:01:20]} Qc8 {[%emt 0:00:05] Inhibits Rd8.} 24. Rd1 {[%emt 0:00:37] Weighted Error Value: White=0.04 (flawless) /Black=0.67.  Loses game:     	---       	Black=1      Inaccurate:     	White=1     	Black=4      OK:         	White=9     	Black=4      Best:        	White=2     	Black=2} 1-0

[Event "Elegant Academy GM Aspirant-II"]
[Site "Dhaka"]
[Date "2024.02.23"]
[Round "4.5"]
[White "Murshed, Niaz"]
[Black "Siddharth, Jagadeesh"]
[Result "1/2-1/2"]
[ECO "E81"]
[WhiteElo "2363"]
[BlackElo "2457"]
[Annotator "RC"]
[PlyCount "54"]
[EventDate "2024.02.21"]
[EventType "tourn"]
[EventCountry "BAN"]
[SourceTitle "playchess.com"]
[Source "ChessBase"]
[SourceQuality "1"]
[TimeControl "5400+30"]

1. d4 {[%emt 0:00:02]} Nf6 {[%emt 0:06:28]} 2. c4 {[%emt 0:00:19]} g6 {[%emt 0:00:08]} 3. Nc3 {[%emt 0:00:52]} Bg7 {[%emt 0:00:06]} 4. e4 {[%emt 0:00:26]} d6 {[%emt 0:00:06]} 5. Bd3 {[%emt 0:03:55]} O-O {[%emt 0:00:19]} 6. Nge2 {[%emt 0:00:07]} Nc6 {[%emt 0:00:09]} 7. f3 {[%emt 0:08:18]} Nd7 {[%emt 0:04:02]} 8. Be3 {[%emt 0:02:54]} e5 {[%emt 0:00:08]} 9. d5 {[%emt 0:02:02]} Nd4 {[%emt 0:01:03]} 10. Nb5 {[%emt 0:04:02]} Nxe2 {[%emt 0:09:53]} 11. Qxe2 {[%emt 0:05:01]} a6 {[%emt 0:00:17]} 12. Nc3 {[%emt 0:00:32]} c5 {[%emt 0:00:36]} 13. O-O {[%emt 0:01:47]} f5 {[%emt 0:00:08]} 14. exf5 {[%emt 0:02:02]} gxf5 {[%emt 0:00:06]} 15. Qc2 {[%emt 0:01:13]} e4 {[%emt 0:11:24]} 16. fxe4 {[%emt 0:01:22]} Ne5 {[%emt 0:00:12]} 17. exf5 {[%emt 0:02:33]} Qh4 {[%emt 0:00:27]} 18. Rf4 {[%emt 0:21:59]} Ng4 {[%emt 0:00:12]} 19. h3 {[%emt 0:00:08]} Nxe3 {[%emt 0:00:18]} 20. Rxh4 {[%emt 0:00:05]} Nxc2 {[%emt 0:00:06]} 21. Bxc2 {[%emt 0:00:05]} Bxf5 {[%emt 0:00:27]} 22. Bxf5 {[%emt 0:02:54]} Rxf5 {[%emt 0:00:03]} 23. Re1 {[%emt 0:00:08]} Bd4+ {[%emt 0:00:06]} 24. Kh2 {[%emt 0:00:03]} Be5+ {[%emt 0:00:03]} 25. Kg1 {[%emt 0:00:04]} Bd4+ {[%emt 0:00:03]} 26. Kh2 {[%emt 0:00:03]} Be5+ {[%emt 0:00:03]} 27. Kg1 {[%emt 0:00:10]} Bd4+ {[%emt 0:00:05]} 1/2-1/2

[Event "Elegant Academy GM Aspirant-II"]
[Site "Dhaka"]
[Date "2024.02.24"]
[Round "5.1"]
[White "Siddharth, Jagadeesh"]
[Black "Aradhya, Garg"]
[Result "1/2-1/2"]
[ECO "C26"]
[WhiteElo "2457"]
[BlackElo "2390"]
[Annotator "TA"]
[PlyCount "61"]
[EventDate "2024.02.21"]
[EventType "tourn"]
[EventCountry "BAN"]
[SourceTitle "playchess.com"]
[Source "ChessBase"]
[SourceQuality "1"]
[TimeControl "5400+30"]

{[%evp 9,61,-8,7,10,5,0,15,8,33,0,35,0,-6,-8,0,0,0,-50,-54,-53,-61,-43,-34,-43,-52,-42,-40,-72,-33,-41,-17,-18,-11,-21,-17,-13,0,-2,0,0,0,0,14,9,17,7,7,7,7,7,7,7,7,7]} 1. e4 {[%emt 0:03:36]} e5 {[%emt 0:00:02]} 2. Nc3 {[%emt 0:00:08]} Nf6 {[%emt 0:02:31]} 3. g3 {[%emt 0:00:09]} d5 {[%emt 0:01:35]} 4. exd5 {[%emt 0:00:10]} c6 {[%emt 0:01:52]} 5. Nge2 {[%emt 0:00:07]} Bc5 {[%emt 0:08:25]} 6. Bg2 {[%emt 0:00:28]} cxd5 {[%emt 0:01:11]} 7. d4 {[%emt 0:00:06]} exd4 {[%emt 0:00:05]} 8. Nxd4 {[%emt 0:00:07]} Bg4 {[%emt 0:01:13] Against Qe2+} (8... O-O $5) 9. f3 {[%emt 0:00:12]} Bd7 {[%emt 0:06:22]} 10. O-O {[%emt 0:07:33]} O-O {[%emt 0:00:47]} 11. Kh1 {[%emt 0:01:44]} Bxd4 {[%emt 0:09:30]} 12. Qxd4 {[%emt 0:00:35][%cal Oc1g5]} Nc6 {[%emt 0:00:02]} 13. Qd3 {[%emt 0:03:32]} ({White should try} 13. Qd2 $11) 13... Nb4 $15 {[%emt 0:03:34]} 14. Qd2 {[%emt 0:02:01]} Rc8 $1 {[%emt 0:09:00][%cal Od5d4] Hoping for ...d4!} 15. a3 {[%emt 0:00:23] [#]} Nxc2 {[%emt 0:00:34]} 16. Qxc2 {[%emt 0:00:13]} d4 {[%emt 0:00:05] Prevents Be3.} 17. Bg5 {[%emt 0:00:25]} dxc3 {[%emt 0:02:32]} 18. Rad1 {[%emt 0:02:05]} Rc7 {[%emt 0:01:33]} 19. Bf4 {[%emt 0:08:14]} Rc6 {[%emt 0:01:28]} 20. Be5 {[%emt 0:00:30] The position is equal.} cxb2 {[%emt 0:07:16]} 21. Qxb2 {[%emt 0:14:41][%cal Ob2d2] [#] Qd2! is the strong threat.} Qc8 $1 {[%emt 0:00:17]} 22. Rc1 {[%emt 0:00:07]} Bh3 {[%emt 0:07:34]} 23. Rxc6 {[%emt 0:01:12]} Bxg2+ {[%emt 0:00:11]} 24. Kxg2 {[%emt 0:00:04]} Qxc6 {[%emt 0:34:51]} 25. Rc1 {[%emt 0:00:08]} Qb6 {[%emt 0:00:00]} 26. Qxb6 {[%emt 0:00:11]} axb6 {[%emt 0:00:00]} 27. Bxf6 {[%emt 0:00:06]} gxf6 {[%emt 0:00:00]} 28. Rb1 {[%emt 0:00:06]} Ra8 {[%emt 0:00:00]} 29. Rxb6 {[%emt 0:00:04]} Rxa3 {[%emt 0:00:00]} 30. Rxb7 {[%emt 0:00:09]} Kg7 {[%emt 0:00:00]} 31. Rb2 {[%emt 0:00:04] Weighted Error Value: White=0.08 (flawless) /Black=0.09 (flawless) .  Mistake:       	White=1     	---        Inaccurate:     	White=2     	Black=2      OK:         	White=11    	Black=12     Best:        	---       	Black=1      Strong:       	---       	Black=2      Brilliant:      	---       	Black=1} 1/2-1/2